[Event "AUT-ch Open 2020"]
[Site "Graz"]
[Date "2020.02.16"]
[Round "3.22"]
[White "Lupolov, Boris"]
[Black "Steindl, Johannes"]
[Result "0-1"]
[ECO "D44"]
[WhiteElo "1973"]
[BlackElo "2273"]
[Annotator "ChessBase"]
[PlyCount "108"]
[EventDate "2020.02.14"]
[EventType "swiss"]
[EventCountry "AUT"]
[SourceTitle "playchess.com"]
[Source "ChessBase"]
[SourceQuality "1"]
[TimeControl "40/5400+30:1800+30"]

1. d4 {[%emt 0:00:00]} Nf6 {[%emt 0:01:24]} 2. c4 {[%emt 0:00:00]} e6 {[%emt 0:00:07]} 3. Nf3 {[%emt 0:00:00]} d5 {[%emt 0:00:04]} 4. Bg5 {[%emt 0:00:00]} Bb4+ {[%emt 0:00:03]} 5. Nc3 {[%emt 0:00:30]} dxc4 {[%emt 0:00:04]} 6. e3 {[%emt 0:16:39]} b5 {[%emt 0:00:13]} 7. a4 {[%emt 0:00:53]} c6 {[%emt 0:00:36]} 8. Nd2 {[%emt 0:04:15]} Bb7 {[%emt 0:07:06]} 9. Be2 {[%emt 0:05:37]} Nbd7 {[%emt 0:04:33]} 10. Bf3 {[%emt 0:01:19]} Qb6 {[%emt 0:02:17]} 11. O-O {[%emt 0:01:47]} O-O {[%emt 0:01:04]} 12. Qc2 {[%emt 0:01:17]} a6 {[%emt 0:06:22]} 13. Nde4 {[%emt 0:11:23]} Nxe4 {[%emt 0:04:55]} 14. Qxe4 {[%emt 0:02:04]} e5 {[%emt 0:00:41]} 15. dxe5 {[%emt 0:11:09]} Rfe8 {[%emt 0:00:04]} 16. Bf4 {[%emt 0:00:39]} Nc5 {[%emt 0:01:07]} 17. Qf5 {[%emt 0:06:59]} Bxc3 {[%emt 0:01:30]} 18. bxc3 {[%emt 0:00:20]} Nxa4 {[%emt 0:00:19]} 19. Rxa4 {[%emt 0:13:01]} bxa4 {[%emt 0:00:09]} 20. Rb1 {[%emt 0:00:05]} Qa7 {[%emt 0:14:04]} 21. Be4 {[%emt 0:00:54]} g6 {[%emt 0:00:13]} 22. Qd7 {[%emt 0:00:22]} Rad8 {[%emt 0:06:36]} 23. Qc7 {[%emt 0:00:31]} Qb8 {[%emt 0:09:48]} 24. Qa5 {[%emt 0:05:37]} Qc8 {[%emt 0:08:52]} 25. Qxa4 {[%emt 0:00:32]} Qd7 {[%emt 0:00:32]} 26. h3 {[%emt 0:00:35]} c5 {[%emt 0:07:00]} 27. Qxd7 {[%emt 0:04:45]} Rxd7 {[%emt 0:00:05]} 28. Rxb7 {[%emt 0:00:07]} Rxb7 {[%emt 0:00:04]} 29. Bxb7 {[%emt 0:00:07]} a5 {[%emt 0:00:03]} 30. Bd5 {[%emt 0:03:10]} a4 {[%emt 0:04:12]} 31. Bxc4 {[%emt 0:01:43]} a3 {[%emt 0:02:04]} 32. Ba2 {[%emt 0:06:23]} Rd8 {[%emt 0:02:54]} 33. e6 {[%emt 0:01:44]} Rd1+ {[%emt 0:00:06]} 34. Kh2 {[%emt 0:00:04]} fxe6 {[%emt 0:00:03]} 35. Bxe6+ {[%emt 0:00:05]} Kf8 {[%emt 0:00:04]} 36. Kg3 {[%emt 0:01:54]} Ke7 {[%emt 0:00:28]} 37. Bg8 {[%emt 0:00:41]} Rd2 {[%emt 0:00:22]} 38. Be5 {[%emt 0:00:41]} a2 {[%emt 0:00:57]} 39. c4 {[%emt 0:00:25]} Rd4 {[%emt 0:00:24]} 40. exd4 {[%emt 0:00:58]} a1=Q {[%emt 0:00:05]} 41. Bd5 {[%emt 0:30:32]} cxd4 {[%emt 0:30:38]} 42. Kf3 {[%emt 0:00:00]} Qd1+ {[%emt 0:00:00]} 43. Kg3 {[%emt 0:00:00]} Qb3+ {[%emt 0:00:00]} 44. Kg4 {[%emt 0:00:00]} d3 {[%emt 0:00:00]} 45. Bf4 {[%emt 0:00:00]} Qc3 {[%emt 0:00:00]} 46. Bg5+ {[%emt 0:00:00]} Kd7 {[%emt 0:00:00]} 47. Bf4 {[%emt 0:00:00]} d2 {[%emt 0:00:00]} 48. Bxd2 {[%emt 0:00:00]} Qxd2 {[%emt 0:00:00]} 49. Kg3 {[%emt 0:00:00]} Kd6 {[%emt 0:00:00]} 50. h4 {[%emt 0:00:00]} Ke5 {[%emt 0:00:00]} 51. Bf3 {[%emt 0:00:00]} Qf4+ {[%emt 0:00:00]} 52. Kh3 {[%emt 0:00:00]} Qxc4 {[%emt 0:00:00]} 53. Kg3 {[%emt 0:00:00]} Qd4 {[%emt 0:00:00]} 54. Bg4 {[%emt 0:00:00]} Qf4+ {[%emt 0:24:48]} 0-1

[Event "AUT-ch Open 2020"]
[Site "Graz"]
[Date "2020.02.16"]
[Round "3.23"]
[White "Lim, Zhuo Ren"]
[Black "Niedbala, Bartlomiej"]
[Result "1-0"]
[ECO "A96"]
[WhiteElo "2296"]
[BlackElo "2432"]
[Annotator "ChessBase"]
[PlyCount "67"]
[EventDate "2020.02.14"]
[EventType "swiss"]
[EventCountry "AUT"]
[SourceTitle "playchess.com"]
[Source "ChessBase"]
[SourceQuality "1"]
[TimeControl "40/5400+30:1800+30"]

1. d4 {[%emt 0:00:00]} e6 {[%emt 0:03:19]} 2. Nf3 {[%emt 0:00:43]} f5 {[%emt 0:00:43]} 3. g3 {[%emt 0:00:22]} Nf6 {[%emt 0:00:09]} 4. Bg2 {[%emt 0:00:13]} Be7 {[%emt 0:00:47]} 5. O-O {[%emt 0:00:26]} O-O {[%emt 0:05:22]} 6. c4 {[%emt 0:01:05]} d6 {[%emt 0:01:06]} 7. Nc3 {[%emt 0:00:39]} a5 {[%emt 0:01:26]} 8. b3 {[%emt 0:06:29]} Qe8 {[%emt 0:05:32]} 9. Bb2 {[%emt 0:08:39]} Qh5 {[%emt 0:11:50]} 10. Ne1 {[%emt 0:02:40]} Nbd7 {[%emt 0:08:30]} 11. e4 {[%emt 0:01:16]} Qxd1 {[%emt 0:02:40]} 12. Rxd1 {[%emt 0:00:15]} f4 {[%emt 0:05:11]} 13. Nd3 {[%emt 0:06:08]} fxg3 {[%emt 0:02:11]} 14. hxg3 {[%emt 0:00:10]} Nh5 {[%emt 0:03:02]} 15. Nb5 {[%emt 0:03:59]} Bd8 {[%emt 0:01:45]} 16. Bh3 {[%emt 0:02:27]} Ndf6 {[%emt 0:10:24]} 17. e5 {[%emt 0:05:00]} dxe5 {[%emt 0:03:32]} 18. dxe5 {[%emt 0:00:36]} Ne4 {[%emt 0:00:26]} 19. Ba3 {[%emt 0:00:27]} c6 {[%emt 0:13:58]} 20. Bxf8 {[%emt 0:04:42]} cxb5 {[%emt 0:00:15]} 21. Nc5 {[%emt 0:00:46]} Kxf8 {[%emt 0:00:57]} 22. Rxd8+ {[%emt 0:00:26]} Ke7 {[%emt 0:00:12]} 23. Rxc8 {[%emt 0:00:08]} Rxc8 {[%emt 0:00:13]} 24. Nxe4 {[%emt 0:00:05]} bxc4 {[%emt 0:00:07]} 25. Nd6 {[%emt 0:00:37]} Rc5 {[%emt 0:00:24]} 26. Nxc4 {[%emt 0:00:04]} a4 {[%emt 0:00:24]} 27. Bg4 {[%emt 0:00:39]} axb3 {[%emt 0:00:13]} 28. axb3 {[%emt 0:00:03]} b5 {[%emt 0:00:01]} 29. Bxh5 {[%emt 0:00:58]} bxc4 {[%emt 0:00:05]} 30. bxc4 {[%emt 0:00:07]} Rxc4 {[%emt 0:00:04]} 31. Re1 {[%emt 0:00:28]} g6 {[%emt 0:00:22]} 32. Bf3 {[%emt 0:00:06]} h5 {[%emt 0:00:07]} 33. Kg2 {[%emt 0:00:11]} h4 {[%emt 0:00:05]} 34. Re4 {[%emt 0:00:23]} 1-0

[Event "AUT-ch Open 2020"]
[Site "Graz"]
[Date "2020.02.16"]
[Round "3.23"]
[White "Cafasso, Elia"]
[Black "Neuschmied, Siegfried"]
[Result "0-1"]
[ECO "B06"]
[WhiteElo "1908"]
[BlackElo "2268"]
[Annotator "ChessBase"]
[PlyCount "44"]
[EventDate "2020.02.14"]
[EventType "swiss"]
[EventCountry "AUT"]
[SourceTitle "playchess.com"]
[Source "ChessBase"]
[SourceQuality "1"]
[TimeControl "40/5400+30:1800+30"]

1. e4 {[%emt 0:00:00]} g6 {[%emt 0:00:20]} 2. d4 {[%emt 0:00:00]} Bg7 {[%emt 0:00:07]} 3. Nc3 {[%emt 0:00:00]} d6 {[%emt 0:00:05]} 4. Nf3 {[%emt 0:02:16]} a6 {[%emt 0:04:27]} 5. a4 {[%emt 0:00:18]} Nf6 {[%emt 0:01:38]} 6. Bd3 {[%emt 0:04:41]} O-O {[%emt 0:06:29]} 7. O-O {[%emt 0:02:26]} Nc6 {[%emt 0:01:53]} 8. h3 {[%emt 0:07:18]} Nb4 {[%emt 0:03:51]} 9. Be2 {[%emt 0:07:10]} b6 {[%emt 0:08:26]} 10. Be3 {[%emt 0:08:03]} e6 {[%emt 0:09:05]} 11. Nd2 {[%emt 0:06:24]} Bb7 {[%emt 0:03:40]} 12. f4 {[%emt 0:06:41]} Qe7 {[%emt 0:03:56]} 13. g4 {[%emt 0:07:23]} d5 {[%emt 0:05:18]} 14. e5 {[%emt 0:02:48]} Nd7 {[%emt 0:00:11]} 15. f5 {[%emt 0:06:04]} exf5 {[%emt 0:03:38]} 16. gxf5 {[%emt 0:00:21]} gxf5 {[%emt 0:02:24]} 17. Na2 {[%emt 0:02:26]} Nxa2 {[%emt 0:02:12]} 18. Rxa2 {[%emt 0:00:04]} f6 {[%emt 0:00:13]} 19. Rxf5 {[%emt 0:05:49]} fxe5 {[%emt 0:00:38]} 20. Rxf8+ {[%emt 0:04:11]} Rxf8 {[%emt 0:00:16]} 21. dxe5 {[%emt 0:01:06]} Nxe5 {[%emt 0:03:30]} 22. Ra3 {[%emt 0:02:32]} Qh4 {[%emt 0:01:46]} 0-1

[Event "AUT-ch Open 2020"]
[Site "Graz"]
[Date "2020.02.16"]
[Round "3.24"]
[White "Matt, Fabian"]
[Black "Halvax, Georg"]
[Result "1/2-1/2"]
[ECO "D00"]
[WhiteElo "2290"]
[BlackElo "2428"]
[Annotator "ChessBase"]
[PlyCount "70"]
[EventDate "2020.02.14"]
[EventType "swiss"]
[EventCountry "AUT"]
[SourceTitle "playchess.com"]
[Source "ChessBase"]
[SourceQuality "1"]
[TimeControl "40/5400+30:1800+30"]

1. d4 {[%emt 0:00:00]} d5 {[%emt 0:00:00]} 2. Bf4 {[%emt 0:00:18]} Nf6 {[%emt 0:00:06]} 3. e3 {[%emt 0:00:07]} c5 {[%emt 0:00:13]} 4. c3 {[%emt 0:00:06]} Nc6 {[%emt 0:00:14]} 5. Nd2 {[%emt 0:00:06]} Qb6 {[%emt 0:00:26]} 6. Qb3 {[%emt 0:00:13]} cxd4 {[%emt 0:01:10]} 7. exd4 {[%emt 0:01:08]} Bf5 {[%emt 0:02:09]} 8. Ngf3 {[%emt 0:00:34]} e6 {[%emt 0:00:51]} 9. Nh4 {[%emt 0:03:48]} Be4 {[%emt 0:00:20]} 10. f3 {[%emt 0:01:01]} Bg6 {[%emt 0:03:26]} 11. Qxb6 {[%emt 0:07:21]} axb6 {[%emt 0:00:52]} 12. Nxg6 {[%emt 0:00:22]} hxg6 {[%emt 0:00:13]} 13. Kf2 {[%emt 0:00:05]} Kd7 {[%emt 0:04:10]} 14. Bd3 {[%emt 0:03:26]} Bd6 {[%emt 0:02:16]} 15. Bxd6 {[%emt 0:01:10]} Kxd6 {[%emt 0:00:04]} 16. h4 {[%emt 0:02:07]} Nd7 {[%emt 0:09:15]} 17. a3 {[%emt 0:09:38]} e5 {[%emt 0:07:06]} 18. dxe5+ {[%emt 0:01:05]} Ncxe5 {[%emt 0:00:13]} 19. Be2 {[%emt 0:00:45]} Nc5 {[%emt 0:02:25]} 20. b4 {[%emt 0:20:40]} Ncd3+ {[%emt 0:06:22]} 21. Ke3 {[%emt 0:00:57]} Nb2 {[%emt 0:01:46]} 22. f4 {[%emt 0:01:28]} Nd7 {[%emt 0:03:29]} 23. Ra2 {[%emt 0:03:47]} Na4 {[%emt 0:01:29]} 24. Rc2 {[%emt 0:00:21]} Rhc8 {[%emt 0:04:57]} 25. Rhc1 {[%emt 0:01:00]} Nf6 {[%emt 0:03:17]} 26. Nf3 {[%emt 0:09:26]} Re8+ {[%emt 0:06:23]} 27. Kd2 {[%emt 0:08:46]} Ne4+ {[%emt 0:06:59]} 28. Kd1 {[%emt 0:00:13]} Rec8 {[%emt 0:05:34]} 29. c4 {[%emt 0:00:47]} dxc4 {[%emt 0:00:43]} 30. Bxc4 {[%emt 0:00:15]} Rxc4 {[%emt 0:05:51]} 31. Rxc4 {[%emt 0:00:06]} Nb2+ {[%emt 0:00:05]} 32. Ke1 {[%emt 0:09:03]} Nd3+ {[%emt 0:02:13]} 33. Kd1 {[%emt 0:00:35]} Nb2+ {[%emt 0:05:27]} 34. Ke1 {[%emt 0:00:07]} Nd3+ {[%emt 0:11:03]} 35. Kd1 {[%emt 0:00:07]} Nb2+ {[%emt 0:00:04]} 1/2-1/2

[Event "AUT-ch Open 2020"]
[Site "Graz"]
[Date "2020.02.16"]
[Round "3.25"]
[White "Menezes, Christoph"]
[Black "Kravanja, Georg"]
[Result "1-0"]
[ECO "A14"]
[WhiteElo "2262"]
[BlackElo "2262"]
[Annotator "ChessBase"]
[PlyCount "93"]
[EventDate "2020.02.14"]
[EventType "swiss"]
[EventCountry "AUT"]
[SourceTitle "playchess.com"]
[Source "ChessBase"]
[SourceQuality "1"]
[TimeControl "40/5400+30:1800+30"]

1. c4 {[%emt 0:00:00]} Nf6 {[%emt 0:00:00]} 2. Nf3 {[%emt 0:00:02]} e6 {[%emt 0:00:00]} 3. g3 {[%emt 0:01:17]} d5 {[%emt 0:00:06]} 4. Bg2 {[%emt 0:00:37]} Be7 {[%emt 0:00:10]} 5. O-O {[%emt 0:01:01]} O-O {[%emt 0:00:06]} 6. Ne5 {[%emt 0:04:31]} c5 {[%emt 0:01:09]} 7. cxd5 {[%emt 0:00:54]} exd5 {[%emt 0:00:09]} 8. e3 {[%emt 0:00:42]} Nc6 {[%emt 0:05:09]} 9. d4 {[%emt 0:04:42]} cxd4 {[%emt 0:03:04]} 10. Nxc6 {[%emt 0:02:07]} bxc6 {[%emt 0:00:06]} 11. exd4 {[%emt 0:00:42]} Bd6 {[%emt 0:02:09]} 12. Nc3 {[%emt 0:03:53]} h6 {[%emt 0:02:47]} 13. Qc2 {[%emt 0:07:46]} Qb6 {[%emt 0:09:01]} 14. Rd1 {[%emt 0:05:55]} Bg4 {[%emt 0:01:34]} 15. f3 {[%emt 0:03:06]} Be6 {[%emt 0:02:26]} 16. Be3 {[%emt 0:01:15]} Rfe8 {[%emt 0:01:05]} 17. Bf2 {[%emt 0:04:51]} Rab8 {[%emt 0:12:44]} 18. Na4 {[%emt 0:02:19]} Qb7 {[%emt 0:03:56]} 19. Rac1 {[%emt 0:03:41]} Bd7 {[%emt 0:03:34]} 20. Bf1 {[%emt 0:03:41]} Nh7 {[%emt 0:11:07]} 21. h4 {[%emt 0:05:04]} Qc7 {[%emt 0:05:32]} 22. Bd3 {[%emt 0:00:52]} Nf6 {[%emt 0:00:37]} 23. g4 {[%emt 0:10:47]} Bg3 {[%emt 0:13:43]} 24. Re1 {[%emt 0:12:25]} Qf4 {[%emt 0:09:38]} 25. Kg2 {[%emt 0:01:30]} Bxf2 {[%emt 0:00:08]} 26. Qxf2 {[%emt 0:00:02]} Rb4 {[%emt 0:01:40]} 27. Nc5 {[%emt 0:02:15]} Rxe1 {[%emt 0:02:01]} 28. Rxe1 {[%emt 0:00:18]} Rxd4 {[%emt 0:01:29]} 29. Qe3 {[%emt 0:05:19]} Qxe3 {[%emt 0:00:52]} 30. Rxe3 {[%emt 0:01:10]} Rb4 {[%emt 0:00:18]} 31. g5 {[%emt 0:06:45]} d4 {[%emt 0:00:12]} 32. Re7 {[%emt 0:01:18]} hxg5 {[%emt 0:00:41]} 33. hxg5 {[%emt 0:00:56]} Rxb2+ {[%emt 0:01:11]} 34. Kh1 {[%emt 0:02:36]} Bh3 {[%emt 0:01:08]} 35. gxf6 {[%emt 0:00:33]} gxf6 {[%emt 0:00:02]} 36. Rxa7 {[%emt 0:01:14]} Bg2+ {[%emt 0:00:11]} 37. Kg1 {[%emt 0:00:02]} Bxf3 {[%emt 0:00:05]} 38. a4 {[%emt 0:01:05]} Bd5 {[%emt 0:00:06]} 39. a5 {[%emt 0:01:38]} Rg2+ {[%emt 0:00:13]} 40. Kf1 {[%emt 0:00:09]} Ra2 {[%emt 0:00:05]} 41. a6 {[%emt 0:30:49]} Ra5 {[%emt 0:30:29]} 42. Rb7 {[%emt 0:00:29]} Rxc5 {[%emt 0:01:13]} 43. a7 {[%emt 0:00:13]} Rc1+ {[%emt 0:00:06]} 44. Kf2 {[%emt 0:00:21]} Ra1 {[%emt 0:01:53]} 45. Rb8+ {[%emt 0:00:19]} Kg7 {[%emt 0:00:09]} 46. a8=Q {[%emt 0:00:07]} Rxa8 {[%emt 0:00:11]} 47. Rxa8 {[%emt 0:00:05]} 1-0

[Event "AUT-ch Open 2020"]
[Site "Graz"]
[Date "2020.02.16"]
[Round "3.28"]
[White "Orgler, Philipp"]
[Black "Nitin, S.."]
[Result "0-1"]
[ECO "A43"]
[WhiteElo "2021"]
[BlackElo "2353"]
[Annotator "ChessBase"]
[PlyCount "66"]
[EventDate "2020.02.14"]
[EventType "swiss"]
[EventCountry "AUT"]
[SourceTitle "playchess.com"]
[Source "ChessBase"]
[SourceQuality "1"]
[TimeControl "40/5400+30:1800+30"]

1. d4 {[%emt 0:00:00]} c5 {[%emt 0:00:09]} 2. d5 {[%emt 0:00:56]} d6 {[%emt 0:00:10]} 3. e4 {[%emt 0:00:33]} Nf6 {[%emt 0:00:10]} 4. Nc3 {[%emt 0:00:41]} g6 {[%emt 0:00:30]} 5. Nf3 {[%emt 0:01:53]} Bg7 {[%emt 0:00:13]} 6. Be2 {[%emt 0:01:05]} O-O {[%emt 0:00:16]} 7. h3 {[%emt 0:00:16]} e6 {[%emt 0:00:22]} 8. O-O {[%emt 0:00:12]} exd5 {[%emt 0:00:33]} 9. exd5 {[%emt 0:00:08]} Na6 {[%emt 0:00:22]} 10. Nd2 {[%emt 0:01:57]} Nc7 {[%emt 0:01:46]} 11. Nc4 {[%emt 0:01:14]} b5 {[%emt 0:01:23]} 12. Ne3 {[%emt 0:04:10]} a6 {[%emt 0:03:14]} 13. a4 {[%emt 0:00:36]} Rb8 {[%emt 0:07:58]} 14. Ng4 {[%emt 0:06:54]} Bxg4 {[%emt 0:05:24]} 15. hxg4 {[%emt 0:02:13]} b4 {[%emt 0:01:36]} 16. g5 {[%emt 0:02:32]} bxc3 {[%emt 0:02:35]} 17. gxf6 {[%emt 0:00:09]} Qxf6 {[%emt 0:01:20]} 18. bxc3 {[%emt 0:00:53]} Qxc3 {[%emt 0:00:40]} 19. Ra3 {[%emt 0:01:28]} Qe5 {[%emt 0:00:52]} 20. Bc4 {[%emt 0:12:22]} Qe4 {[%emt 0:04:53]} 21. Qd3 {[%emt 0:04:53]} Qxd3 {[%emt 0:09:40]} 22. Bxd3 {[%emt 0:02:56]} Nxd5 {[%emt 0:02:12]} 23. Bxa6 {[%emt 0:02:10]} Nb4 {[%emt 0:00:26]} 24. Bd3 {[%emt 0:01:17]} d5 {[%emt 0:06:32]} 25. Bf4 {[%emt 0:02:41]} Rbc8 {[%emt 0:00:20]} 26. Rb1 {[%emt 0:02:12]} Rfd8 {[%emt 0:02:19]} 27. a5 {[%emt 0:03:44]} c4 {[%emt 0:01:35]} 28. Rxb4 {[%emt 0:10:03]} Bf8 {[%emt 0:00:17]} 29. c3 {[%emt 0:00:29]} cxd3 {[%emt 0:01:44]} 30. a6 {[%emt 0:01:12]} d4 {[%emt 0:01:02]} 31. a7 {[%emt 0:01:18]} dxc3 {[%emt 0:00:23]} 32. Bb8 {[%emt 0:00:29]} Bxb4 33. a8=Q {[%emt 0:00:41]} Rxb8 {[%emt 0:00:50]} 0-1

[Event "AUT-ch Open 2020"]
[Site "Graz"]
[Date "2020.02.16"]
[Round "3.30"]
[White "Lodici, Lorenzo"]
[Black "Krasteva, Beloslava"]
[Result "1-0"]
[ECO "E06"]
[WhiteElo "2492"]
[BlackElo "2259"]
[Annotator "ChessBase"]
[PlyCount "73"]
[EventDate "2020.02.14"]
[EventType "swiss"]
[EventCountry "AUT"]
[SourceTitle "playchess.com"]
[Source "ChessBase"]
[SourceQuality "1"]
[TimeControl "40/5400+30:1800+30"]

1. d4 {[%emt 0:00:00]} d5 {[%emt 0:00:00]} 2. c4 {[%emt 0:00:00]} e6 {[%emt 0:00:00]} 3. Nf3 {[%emt 0:00:11]} Nf6 {[%emt 0:00:30]} 4. g3 {[%emt 0:00:05]} Be7 {[%emt 0:00:13]} 5. Bg2 {[%emt 0:00:04]} O-O {[%emt 0:00:16]} 6. Nc3 {[%emt 0:00:05]} dxc4 {[%emt 0:01:14]} 7. Ne5 {[%emt 0:00:06]} Qd6 {[%emt 0:00:46]} 8. O-O {[%emt 0:03:09]} Qa6 {[%emt 0:02:10]} 9. a4 {[%emt 0:00:05]} Nc6 {[%emt 0:00:35]} 10. Nb5 {[%emt 0:00:04]} Nxe5 {[%emt 0:00:48]} 11. dxe5 {[%emt 0:00:01]} Rd8 {[%emt 0:00:34]} 12. exf6 {[%emt 0:04:28]} Rxd1 {[%emt 0:00:36]} 13. Rxd1 {[%emt 0:00:01]} Bd6 {[%emt 0:00:43]} 14. Bf4 {[%emt 0:00:01]} Qa5 {[%emt 0:01:22]} 15. Nxd6 {[%emt 0:00:05]} cxd6 {[%emt 0:01:25]} 16. Rxd6 {[%emt 0:00:02]} h5 {[%emt 0:13:15]} 17. fxg7 {[%emt 0:08:39]} Kxg7 {[%emt 0:11:41]} 18. Bd2 {[%emt 0:15:49]} Qc7 {[%emt 0:03:50]} 19. Bc3+ {[%emt 0:01:07]} f6 {[%emt 0:01:37]} 20. Rad1 {[%emt 0:00:05]} a5 {[%emt 0:05:23]} 21. Rd8 {[%emt 0:07:56]} Ra6 {[%emt 0:05:20]} 22. Re8 {[%emt 0:02:35]} e5 {[%emt 0:04:03]} 23. Rdd8 {[%emt 0:00:31]} Be6 {[%emt 0:02:25]} 24. Rb8 {[%emt 0:05:50]} Rd6 {[%emt 0:07:40]} 25. h4 {[%emt 0:03:46]} Bd5 {[%emt 0:10:07]} 26. Rbc8 {[%emt 0:08:18]} Qf7 {[%emt 0:03:33]} 27. e4 {[%emt 0:02:39]} Bc6 {[%emt 0:01:51]} 28. Rh8 {[%emt 0:00:55]} Bd7 {[%emt 0:07:33]} 29. Rb8 {[%emt 0:08:41]} b6 {[%emt 0:01:07]} 30. f4 {[%emt 0:02:28]} exf4 {[%emt 0:06:40]} 31. gxf4 {[%emt 0:00:43]} Be6 {[%emt 0:02:33]} 32. f5 {[%emt 0:02:04]} Rd1+ {[%emt 0:04:19]} 33. Kf2 {[%emt 0:00:22]} Qc7 {[%emt 0:01:48]} 34. fxe6 {[%emt 0:00:24]} Qf4+ {[%emt 0:00:31]} 35. Ke2 {[%emt 0:00:07]} Qg4+ {[%emt 0:00:29]} 36. Bf3 {[%emt 0:00:06]} Qxe6 {[%emt 0:00:32]} 37. Rbg8+ {[%emt 0:00:24]} 1-0

[Event "AUT-ch Open 2020"]
[Site "Graz"]
[Date "2020.02.16"]
[Round "3.31"]
[White "Yankelevich, Lev"]
[Black "Meurs, Tom"]
[Result "1/2-1/2"]
[ECO "D43"]
[WhiteElo "2473"]
[BlackElo "2249"]
[Annotator "ChessBase"]
[PlyCount "68"]
[EventDate "2020.02.14"]
[EventType "swiss"]
[EventCountry "AUT"]
[SourceTitle "playchess.com"]
[Source "ChessBase"]
[SourceQuality "1"]
[TimeControl "40/5400+30:1800+30"]

1. d4 {[%emt 0:00:00]} d5 {[%emt 0:00:00]} 2. c4 {[%emt 0:00:00]} c6 {[%emt 0:00:00]} 3. Nf3 {[%emt 0:00:00]} Nf6 {[%emt 0:00:00]} 4. Nc3 {[%emt 0:00:00]} e6 {[%emt 0:00:00]} 5. Bg5 {[%emt 0:00:00]} h6 {[%emt 0:00:02]} 6. Bh4 {[%emt 0:00:10]} dxc4 {[%emt 0:00:35]} 7. e4 {[%emt 0:00:06]} g5 {[%emt 0:00:04]} 8. Bg3 {[%emt 0:00:06]} b5 {[%emt 0:00:04]} 9. Be2 {[%emt 0:00:04]} Bb7 {[%emt 0:00:16]} 10. O-O {[%emt 0:00:06]} Nbd7 {[%emt 0:00:28]} 11. h3 {[%emt 0:00:04]} Nh5 {[%emt 0:11:13]} 12. Bh2 {[%emt 0:08:15]} Rg8 {[%emt 0:04:14]} 13. d5 {[%emt 0:09:19]} Nf4 {[%emt 0:11:40]} 14. Nd4 {[%emt 0:06:21]} cxd5 {[%emt 0:09:39]} 15. exd5 {[%emt 0:01:04]} Ne5 {[%emt 0:22:01]} 16. Ndxb5 {[%emt 0:05:49]} exd5 {[%emt 0:06:36]} 17. Re1 {[%emt 0:00:43]} Be7 {[%emt 0:00:44]} 18. Bf1 {[%emt 0:08:01]} Neg6 {[%emt 0:14:16]} 19. Qa4 {[%emt 0:04:03]} Kf8 {[%emt 0:00:37]} 20. Rad1 {[%emt 0:00:39]} Bc5 {[%emt 0:02:15]} 21. b4 {[%emt 0:05:45]} Bb6 {[%emt 0:02:11]} 22. Qc2 {[%emt 0:07:03]} Qf6 {[%emt 0:01:01]} 23. Na4 {[%emt 0:02:16]} d4 {[%emt 0:04:29]} 24. Nxb6 {[%emt 0:00:16]} Nxh3+ {[%emt 0:00:14]} 25. Kh1 {[%emt 0:01:24]} axb6 {[%emt 0:01:16]} 26. Rxd4 {[%emt 0:00:09]} Nxf2+ {[%emt 0:04:28]} 27. Kg1 {[%emt 0:00:06]} Nd3 {[%emt 0:00:06]} 28. Bxd3 {[%emt 0:05:36]} cxd3 {[%emt 0:00:02]} 29. Rxd3 {[%emt 0:00:01]} Nf4 {[%emt 0:00:51]} 30. Rd6 {[%emt 0:01:33]} Nh3+ {[%emt 0:00:06]} 31. Kh1 {[%emt 0:01:29]} Nf2+ {[%emt 0:00:22]} 32. Kg1 {[%emt 0:00:02]} Nh3+ {[%emt 0:00:05]} 33. Kh1 {[%emt 0:00:20]} Nf2+ {[%emt 0:02:00]} 34. Kg1 {[%emt 0:00:04]} Nh3+ {[%emt 0:01:24]} 1/2-1/2

[Event "AUT-ch Open 2020"]
[Site "Graz"]
[Date "2020.02.16"]
[Round "3.32"]
[White "Blohberger, Felix"]
[Black "Bakalarz, Mietek"]
[Result "1/2-1/2"]
[ECO "C42"]
[WhiteElo "2448"]
[BlackElo "2245"]
[Annotator "ChessBase"]
[PlyCount "62"]
[EventDate "2020.02.14"]
[EventType "swiss"]
[EventCountry "AUT"]
[SourceTitle "playchess.com"]
[Source "ChessBase"]
[SourceQuality "1"]
[TimeControl "40/5400+30:1800+30"]

1. e4 {[%emt 0:01:33]} e5 {[%emt 0:00:00]} 2. Nf3 {[%emt 0:00:06]} Nf6 {[%emt 0:00:00]} 3. Nxe5 {[%emt 0:00:06]} d6 {[%emt 0:00:00]} 4. Nd3 {[%emt 0:00:11]} Nxe4 {[%emt 0:00:03]} 5. Qe2 {[%emt 0:00:05]} Qe7 {[%emt 0:00:18]} 6. Nc3 {[%emt 0:00:09]} Nxc3 {[%emt 0:04:51]} 7. dxc3 {[%emt 0:00:50]} Qxe2+ {[%emt 0:00:15]} 8. Bxe2 {[%emt 0:00:07]} Nc6 {[%emt 0:01:52]} 9. O-O {[%emt 0:03:53]} Bf5 {[%emt 0:01:25]} 10. Re1 {[%emt 0:03:06]} O-O-O {[%emt 0:00:13]} 11. Bf3 {[%emt 0:12:08]} Ne5 {[%emt 0:16:39]} 12. Nxe5 {[%emt 0:00:26]} dxe5 {[%emt 0:00:14]} 13. Rxe5 {[%emt 0:00:14]} Bxc2 {[%emt 0:00:08]} 14. Be3 {[%emt 0:00:14]} a6 {[%emt 0:08:29]} 15. Rc1 {[%emt 0:31:43]} Bd6 {[%emt 0:16:15]} 16. Rd5 {[%emt 0:01:19]} Ba4 {[%emt 0:02:27]} 17. Rd4 {[%emt 0:03:49]} Bd7 {[%emt 0:01:15]} 18. Rcd1 {[%emt 0:04:23]} Be6 {[%emt 0:03:07]} 19. c4 {[%emt 0:01:18]} Be7 {[%emt 0:05:54]} 20. b3 {[%emt 0:00:29]} Bf6 {[%emt 0:03:51]} 21. Rxd8+ {[%emt 0:01:30]} Rxd8 {[%emt 0:00:07]} 22. Rxd8+ {[%emt 0:00:23]} Bxd8 {[%emt 0:00:07]} 23. Bd4 {[%emt 0:01:03]} g6 {[%emt 0:10:42]} 24. Be4 {[%emt 0:00:54]} f5 {[%emt 0:01:46]} 25. Bd3 {[%emt 0:00:35]} Be7 {[%emt 0:00:47]} 26. g3 {[%emt 0:04:39]} Bd7 {[%emt 0:02:17]} 27. Be5 {[%emt 0:09:00]} Bc6 {[%emt 0:01:03]} 28. f4 {[%emt 0:05:09]} Bc5+ {[%emt 0:00:47]} 29. Kf1 {[%emt 0:00:07]} a5 {[%emt 0:01:57]} 30. g4 {[%emt 0:07:42]} fxg4 {[%emt 0:08:02]} 31. f5 {[%emt 0:00:10]} gxf5 1/2-1/2